Workbook

Sheet Sheet1 (hidden)
A1: Country | B1: Currency | C1: One | D1: 2-5 | E1: 6-10 | F1: 11-50 | G1: 50-150 | H1: 151-250 | I1: 251+
A2: United Kingdom | B2: GBP | C2: 124.2 | D2: 119.03 | E2: 113.85 | F2: 98.33 | G2: 72.45 | H2: 51.75 | I2: 10.35
A3: Afghanistan | B3: GBP | C3: 120.06 | D3: 114.89 | E3: 109.71 | F3: 95.22 | G3: 70.38 | H3: 49.68 | I3: 10.35
A4: Albania | B4: EUR | C4: 137.66 | D4: 131.45 | E4: 126.27 | F4: 108.68 | G4: 80.73 | H4: 56.93 | I4: 11.39
A5: Algeria | B5: GBP | C5: 120.06 | D5: 114.89 | E5: 109.71 | F5: 95.22 | G5: 70.38 | H5: 49.68 | I5: 10.35
A6: American Samoa | B6: USD | C6: 56.93 | D6: 54.86 | E6: 52.79 | F6: 45.54 | G6: 33.12 | H6: 23.81 | I6: 5.18
A7: Andorra | B7: EUR | C7: 137.66 | D7: 131.45 | E7: 126.27 | F7: 108.68 | G7: 80.73 | H7: 56.93 | I7: 11.39
A8: Angola | B8: USD | C8: 81.77 | D8: 78.66 | E8: 74.52 | F8: 64.17 | G8: 47.61 | H8: 34.16 | I8: 7.25
A9: Anguilla | B9: USD | C9: 90.05 | D9: 85.91 | E9: 81.77 | F9: 71.42 | G9: 52.79 | H9: 37.26 | I9: 7.25
A10: Antarctica | B10: USD | C10: 56.93 | D10: 54.86 | E10: 52.79 | F10: 45.54 | G10: 33.12 | H10: 23.81 | I10: 5.18
A11: Antigua and Barbuda | B11: USD | C11: 65.21 | D11: 62.1 | E11: 60.03 | F11: 51.75 | G11: 38.3 | H11: 26.91 | I11: 5.18
A12: Argentina | B12: USD | C12: 62.1 | D12: 59 | E12: 55.89 | F12: 48.65 | G12: 35.19 | H12: 25.88 | I12: 5.18
A13: Armenia | B13: EUR | C13: 137.66 | D13: 131.45 | E13: 126.27 | F13: 108.68 | G13: 80.73 | H13: 56.93 | I13: 11.39
A14: Aruba | B14: USD | C14: 122.13 | D14: 116.96 | E14: 111.78 | F14: 97.29 | G14: 71.42 | H14: 50.72 | I14: 10.35
A15: Australia | B15: AUD | C15: 156.29 | D15: 149.04 | E15: 142.83 | F15: 123.17 | G15: 91.08 | H15: 65.21 | I15: 13.46
A16: Australia Central Territory (Christmas Islands) | B16: USD | C16: 56.93 | D16: 54.86 | E16: 52.79 | F16: 45.54 | G16: 33.12 | H16: 23.81 | I16: 5.18
A17: Australia Central Territory (Norfolk Islands) | B17: USD | C17: 56.93 | D17: 54.86 | E17: 52.79 | F17: 45.54 | G17: 33.12 | H17: 23.81 | I17: 5.18
A18: Austria | B18: EUR | C18: 137.66 | D18: 131.45 | E18: 126.27 | F18: 108.68 | G18: 80.73 | H18: 56.93 | I18: 11.39
A19: Azerbaijan | B19: EUR | C19: 137.66 | D19: 131.45 | E19: 126.27 | F19: 108.68 | G19: 80.73 | H19: 56.93 | I19: 11.39
A20: Bahamas | B20: USD | C20: 122.13 | D20: 116.96 | E20: 111.78 | F20: 97.29 | G20: 71.42 | H20: 50.72 | I20: 10.35
A21: Bahrain | B21: GBP | C21: 120.06 | D21: 114.89 | E21: 109.71 | F21: 95.22 | G21: 70.38 | H21: 49.68 | I21: 10.35
A22: Bangladesh | B22: USD | C22: 65.21 | D22: 62.1 | E22: 60.03 | F22: 51.75 | G22: 38.3 | H22: 26.91 | I22: 5.18
A23: Barbados | B23: USD | C23: 90.05 | D23: 85.91 | E23: 81.77 | F23: 71.42 | G23: 52.79 | H23: 37.26 | I23: 7.25
A24: Belarus | B24: EUR | C24: 137.66 | D24: 131.45 | E24: 126.27 | F24: 108.68 | G24: 80.73 | H24: 56.93 | I24: 11.39
A25: Belgium | B25: EUR | C25: 137.66 | D25: 131.45 | E25: 126.27 | F25: 108.68 | G25: 80.73 | H25: 56.93 | I25: 11.39
A26: Belize | B26: USD | C26: 61.07 | D26: 59 | E26: 55.89 | F26: 48.65 | G26: 35.19 | H26: 25.88 | I26: 5.18
A27: Benin | B27: USD | C27: 81.77 | D27: 78.66 | E27: 74.52 | F27: 64.17 | G27: 47.61 | H27: 34.16 | I27: 7.25
A28: Bermuda | B28: USD | C28: 122.13 | D28: 116.96 | E28: 111.78 | F28: 97.29 | G28: 71.42 | H28: 50.72 | I28: 10.35
A29: Bhutan | B29: USD | C29: 56.93 | D29: 54.86 | E29: 52.79 | F29: 45.54 | G29: 33.12 | H29: 23.81 | I29: 5.18
A30: Bolivia | B30: USD | C30: 61.07 | D30: 59 | E30: 55.89 | F30: 48.65 | G30: 35.19 | H30: 25.88 | I30: 5.18
A31: Bosnia And Herzegovina | B31: EUR | C31: 137.66 | D31: 131.45 | E31: 126.27 | F31: 108.68 | G31: 80.73 | H31: 56.93 | I31: 11.39
A32: Botswana | B32: USD | C32: 81.77 | D32: 78.66 | E32: 74.52 | F32: 64.17 | G32: 47.61 | H32: 34.16 | I32: 7.25
A33: Brazil | B33: BRL | C33: 654.12 | D33: 626.18 | E33: 599.27 | F33: 517.5 | G33: 380.88 | H33: 272.21 | I33: 54.86
A34: British Indian Ocean Territory | B34: USD | C34: 56.93 | D34: 54.86 | E34: 52.79 | F34: 45.54 | G34: 33.12 | H34: 23.81 | I34: 5.18
A35: British Virgin Islands | B35: USD | C35: 122.13 | D35: 116.96 | E35: 111.78 | F35: 97.29 | G35: 71.42 | H35: 50.72 | I35: 10.35
A36: Brunei Darussalam | B36: USD | C36: 98.33 | D36: 94.19 | E36: 90.05 | F36: 77.63 | G36: 56.93 | H36: 40.37 | I36: 8.28
A37: Bulgaria | B37: EUR | C37: 137.66 | D37: 131.45 | E37: 126.27 | F37: 108.68 | G37: 80.73 | H37: 56.93 | I37: 11.39
A38: Burkina Faso | B38: USD | C38: 81.77 | D38: 78.66 | E38: 74.52 | F38: 64.17 | G38: 47.61 | H38: 34.16 | I38: 7.25
A39: Burundi | B39: USD | C39: 81.77 | D39: 78.66 | E39: 74.52 | F39: 64.17 | G39: 47.61 | H39: 34.16 | I39: 7.25
A40: Cambodia | B40: USD | C40: 56.93 | D40: 54.86 | E40: 52.79 | F40: 45.54 | G40: 33.12 | H40: 23.81 | I40: 5.18
A41: Cameroon | B41: USD | C41: 81.77 | D41: 78.66 | E41: 74.52 | F41: 64.17 | G41: 47.61 | H41: 34.16 | I41: 7.25
A42: Canada | B42: CAD | C42: 213.21 | D42: 203.9 | E42: 195.62 | F42: 168.71 | G42: 124.2 | H42: 89.01 | I42: 17.6
A43: Cape Verde | B43: USD | C43: 81.77 | D43: 78.66 | E43: 74.52 | F43: 64.17 | G43: 47.61 | H43: 34.16 | I43: 7.25
A44: Cayman Islands | B44: USD | C44: 122.13 | D44: 116.96 | E44: 111.78 | F44: 97.29 | G44: 71.42 | H44: 50.72 | I44: 10.35
A45: Central African Republic | B45: USD | C45: 81.77 | D45: 78.66 | E45: 74.52 | F45: 64.17 | G45: 47.61 | H45: 34.16 | I45: 7.25
A46: Chad | B46: USD | C46: 81.77 | D46: 78.66 | E46: 74.52 | F46: 64.17 | G46: 47.61 | H46: 34.16 | I46: 7.25
A47: Chile | B47: USD | C47: 61.07 | D47: 59 | E47: 55.89 | F47: 48.65 | G47: 35.19 | H47: 25.88 | I47: 5.18
A48: China | B48: GBP | C48: 62.1 | D48: 60.03 | E48: 56.93 | F48: 49.68 | G48: 36.23 | H48: 25.88 | I48: 5.18
A49: Cocos (Keeling) Islands | B49: USD | C49: 56.93 | D49: 54.86 | E49: 52.79 | F49: 45.54 | G49: 33.12 | H49: 23.81 | I49: 5.18
A50: Colombia | B50: USD | C50: 61.07 | D50: 59 | E50: 55.89 | F50: 48.65 | G50: 35.19 | H50: 25.88 | I50: 5.18
A51: Comoros | B51: USD | C51: 81.77 | D51: 78.66 | E51: 74.52 | F51: 64.17 | G51: 47.61 | H51: 34.16 | I51: 7.25
A52: Congo, Republic of | B52: USD | C52: 81.77 | D52: 78.66 | E52: 74.52 | F52: 64.17 | G52: 47.61 | H52: 34.16 | I52: 7.25
A53: Cook Islands | B53: USD | C53: 73.49 | D53: 70.38 | E53: 67.28 | F53: 57.96 | G53: 42.44 | H53: 31.05 | I53: 6.21
A54: Costa Rica | B54: USD | C54: 61.07 | D54: 59 | E54: 55.89 | F54: 48.65 | G54: 35.19 | H54: 25.88 | I54: 5.18
A55: Cote D'ivoire | B55: USD | C55: 81.77 | D55: 78.66 | E55: 74.52 | F55: 64.17 | G55: 47.61 | H55: 34.16 | I55: 7.25
A56: Croatia | B56: EUR | C56: 137.66 | D56: 131.45 | E56: 126.27 | F56: 108.68 | G56: 80.73 | H56: 56.93 | I56: 11.39
A57: Cuba | B57: USD | C57: 65.21 | D57: 62.1 | E57: 60.03 | F57: 51.75 | G57: 38.3 | H57: 26.91 | I57: 5.18
A58: Cyprus | B58: EUR | C58: 137.66 | D58: 131.45 | E58: 126.27 | F58: 108.68 | G58: 80.73 | H58: 56.93 | I58: 11.39
A59: Czech Republic | B59: EUR | C59: 137.66 | D59: 131.45 | E59: 126.27 | F59: 108.68 | G59: 80.73 | H59: 56.93 | I59: 11.39
A60: Democratic People's Republic of Korea | B60: USD | C60: 56.93 | D60: 54.86 | E60: 52.79 | F60: 45.54 | G60: 33.12 | H60: 23.81 | I60: 5.18
A61: Denmark | B61: EUR | C61: 137.66 | D61: 131.45 | E61: 126.27 | F61: 108.68 | G61: 80.73 | H61: 56.93 | I61: 11.39
A62: Djibouti | B62: USD | C62: 81.77 | D62: 78.66 | E62: 74.52 | F62: 64.17 | G62: 47.61 | H62: 34.16 | I62: 7.25
A63: Dominica | B63: USD | C63: 65.21 | D63: 62.1 | E63: 60.03 | F63: 51.75 | G63: 38.3 | H63: 26.91 | I63: 5.18
A64: Dominican Republic | B64: USD | C64: 61.07 | D64: 59 | E64: 55.89 | F64: 48.65 | G64: 35.19 | H64: 25.88 | I64: 5.18
A65: East Timor | B65: USD | C65: 56.93 | D65: 54.86 | E65: 52.79 | F65: 45.54 | G65: 33.12 | H65: 23.81 | I65: 5.18
A66: Ecuador | B66: USD | C66: 61.07 | D66: 59 | E66: 55.89 | F66: 48.65 | G66: 35.19 | H66: 25.88 | I66: 5.18
A67: Egypt | B67: GBP | C67: 120.06 | D67: 114.89 | E67: 109.71 | F67: 95.22 | G67: 70.38 | H67: 49.68 | I67: 10.35
A68: El Salvador | B68: USD | C68: 61.07 | D68: 59 | E68: 55.89 | F68: 48.65 | G68: 35.19 | H68: 25.88 | I68: 5.18
A69: Equatorial Guinea | B69: USD | C69: 81.77 | D69: 78.66 | E69: 74.52 | F69: 64.17 | G69: 47.61 | H69: 34.16 | I69: 7.25
A70: Eritrea | B70: USD | C70: 81.77 | D70: 78.66 | E70: 74.52 | F70: 64.17 | G70: 47.61 | H70: 34.16 | I70: 7.25
A71: Estonia | B71: EUR | C71: 137.66 | D71: 131.45 | E71: 126.27 | F71: 108.68 | G71: 80.73 | H71: 56.93 | I71: 11.39
A72: Ethiopia | B72: USD | C72: 81.77 | D72: 78.66 | E72: 74.52 | F72: 64.17 | G72: 47.61 | H72: 34.16 | I72: 7.25
A73: Falkland Islands | B73: USD | C73: 90.05 | D73: 85.91 | E73: 81.77 | F73: 71.42 | G73: 52.79 | H73: 37.26 | I73: 7.25
A74: Faroe Islands | B74: EUR | C74: 137.66 | D74: 131.45 | E74: 126.27 | F74: 108.68 | G74: 80.73 | H74: 56.93 | I74: 11.39
A75: Federated States of Micronesia | B75: USD | C75: 73.49 | D75: 70.38 | E75: 67.28 | F75: 57.96 | G75: 42.44 | H75: 31.05 | I75: 6.21
A76: Fiji | B76: AUD | C76: 78.66 | D76: 75.56 | E76: 72.45 | F76: 62.1 | G76: 45.54 | H76: 33.12 | I76: 6.21
A77: Finland | B77: EUR | C77: 137.66 | D77: 131.45 | E77: 126.27 | F77: 108.68 | G77: 80.73 | H77: 56.93 | I77: 11.39
A78: France | B78: EUR | C78: 137.66 | D78: 131.45 | E78: 126.27 | F78: 108.68 | G78: 80.73 | H78: 56.93 | I78: 11.39
A79: French Guiana | B79: USD | C79: 61.07 | D79: 59 | E79: 55.89 | F79: 48.65 | G79: 35.19 | H79: 25.88 | I79: 5.18
A80: French Polynesia | B80: USD | C80: 105.57 | D80: 101.43 | E80: 97.29 | F80: 83.84 | G80: 62.1 | H80: 44.51 | I80: 9.32
A81: French Southern Territories | B81: USD | C81: 56.93 | D81: 54.86 | E81: 52.79 | F81: 45.54 | G81: 33.12 | H81: 23.81 | I81: 5.18
A82: Gabon | B82: USD | C82: 81.77 | D82: 78.66 | E82: 74.52 | F82: 64.17 | G82: 47.61 | H82: 34.16 | I82: 7.25
A83: Gambia | B83: USD | C83: 81.77 | D83: 78.66 | E83: 74.52 | F83: 64.17 | G83: 47.61 | H83: 34.16 | I83: 7.25
A84: Georgia | B84: EUR | C84: 137.66 | D84: 131.45 | E84: 126.27 | F84: 108.68 | G84: 80.73 | H84: 56.93 | I84: 11.39
A85: Germany | B85: EUR | C85: 137.66 | D85: 131.45 | E85: 126.27 | F85: 108.68 | G85: 80.73 | H85: 56.93 | I85: 11.39
A86: Ghana | B86: USD | C86: 81.77 | D86: 78.66 | E86: 74.52 | F86: 64.17 | G86: 47.61 | H86: 34.16 | I86: 7.25
A87: Gibraltar | B87: EUR | C87: 137.66 | D87: 131.45 | E87: 126.27 | F87: 108.68 | G87: 80.73 | H87: 56.93 | I87: 11.39
A88: Greece | B88: EUR | C88: 137.66 | D88: 131.45 | E88: 126.27 | F88: 108.68 | G88: 80.73 | H88: 56.93 | I88: 11.39
A89: Greenland | B89: USD | C89: 122.13 | D89: 116.96 | E89: 111.78 | F89: 97.29 | G89: 71.42 | H89: 50.72 | I89: 10.35
A90: Grenada | B90: USD | C90: 65.21 | D90: 62.1 | E90: 60.03 | F90: 51.75 | G90: 38.3 | H90: 26.91 | I90: 5.18
A91: Guadeloupe | B91: USD | C91: 90.05 | D91: 85.91 | E91: 81.77 | F91: 71.42 | G91: 52.79 | H91: 37.26 | I91: 7.25
A92: Guam | B92: USD | C92: 105.57 | D92: 101.43 | E92: 97.29 | F92: 83.84 | G92: 62.1 | H92: 44.51 | I92: 9.32
A93: Guatemala | B93: USD | C93: 61.07 | D93: 59 | E93: 55.89 | F93: 48.65 | G93: 35.19 | H93: 25.88 | I93: 5.18
A94: Guinea | B94: USD | C94: 81.77 | D94: 78.66 | E94: 74.52 | F94: 64.17 | G94: 47.61 | H94: 34.16 | I94: 7.25
A95: Guinea-Bissau | B95: USD | C95: 81.77 | D95: 78.66 | E95: 74.52 | F95: 64.17 | G95: 47.61 | H95: 34.16 | I95: 7.25
A96: Guyana | B96: USD | C96: 61.07 | D96: 59 | E96: 55.89 | F96: 48.65 | G96: 35.19 | H96: 25.88 | I96: 5.18
A97: Haiti | B97: USD | C97: 65.21 | D97: 62.1 | E97: 60.03 | F97: 51.75 | G97: 38.3 | H97: 26.91 | I97: 5.18
A98: Holy See (Vatican City State) | B98: EUR | C98: 137.66 | D98: 131.45 | E98: 126.27 | F98: 108.68 | G98: 80.73 | H98: 56.93 | I98: 11.39
A99: Honduras | B99: USD | C99: 61.07 | D99: 59 | E99: 55.89 | F99: 48.65 | G99: 35.19 | H99: 25.88 | I99: 5.18
A100: Hong Kong | B100: HKD | C100: 758.66 | D100: 726.57 | E100: 695.52 | F100: 600.3 | G100: 442.98 | H100: 315.68 | I100: 63.14
A101: Hungary | B101: EUR | C101: 137.66 | D101: 131.45 | E101: 126.27 | F101: 108.68 | G101: 80.73 | H101: 56.93 | I101: 11.39
A102: Iceland | B102: EUR | C102: 137.66 | D102: 131.45 | E102: 126.27 | F102: 108.68 | G102: 80.73 | H102: 56.93 | I102: 11.39
A103: India | B103: INR | C103: 12102.26 | D103: 11597.18 | E103: 10719 | F103: 9257 | G103: 6821 | H103: 4872 | I103: 974
A104: Indonesia | B104: USD | C104: 48.65 | D104: 46.58 | E104: 44.51 | F104: 38.3 | G104: 28.98 | H104: 20.7 | I104: 4.14
A105: Iraq | B105: GBP | C105: 120.06 | D105: 114.89 | E105: 109.71 | F105: 95.22 | G105: 70.38 | H105: 49.68 | I105: 10.35
A106: Ireland | B106: EUR | C106: 137.66 | D106: 131.45 | E106: 126.27 | F106: 108.68 | G106: 80.73 | H106: 56.93 | I106: 11.39
A107: Islamic Republic Of Iran | B107: GBP | C107: 120.06 | D107: 114.89 | E107: 109.71 | F107: 95.22 | G107: 70.38 | H107: 49.68 | I107: 10.35
A108: Israel | B108: EUR | C108: 137.66 | D108: 131.45 | E108: 126.27 | F108: 108.68 | G108: 80.73 | H108: 56.93 | I108: 11.39
A109: Italy | B109: EUR | C109: 137.66 | D109: 131.45 | E109: 126.27 | F109: 108.68 | G109: 80.73 | H109: 56.93 | I109: 11.39
A110: Jamaica | B110: USD | C110: 65.21 | D110: 62.1 | E110: 60.03 | F110: 51.75 | G110: 38.3 | H110: 26.91 | I110: 5.18
A111: Japan | B111: USD | C111: 94.19 | D111: 91.08 | E111: 86.94 | F111: 74.52 | G111: 54.86 | H111: 39.33 | I111: 8.28
A112: Jordan | B112: GBP | C112: 120.06 | D112: 114.89 | E112: 109.71 | F112: 95.22 | G112: 70.38 | H112: 49.68 | I112: 10.35
A113: Kazakhstan | B113: EUR | C113: 137.66 | D113: 131.45 | E113: 126.27 | F113: 108.68 | G113: 80.73 | H113: 56.93 | I113: 11.39
A114: Kenya | B114: USD | C114: 81.77 | D114: 78.66 | E114: 74.52 | F114: 64.17 | G114: 47.61 | H114: 34.16 | I114: 7.25
A115: Kiribati | B115: USD | C115: 56.93 | D115: 54.86 | E115: 52.79 | F115: 45.54 | G115: 33.12 | H115: 23.81 | I115: 5.18
A116: Kuwait | B116: GBP | C116: 120.06 | D116: 114.89 | E116: 109.71 | F116: 95.22 | G116: 70.38 | H116: 49.68 | I116: 10.35
A117: Kyrgyzstan | B117: EUR | C117: 137.66 | D117: 131.45 | E117: 126.27 | F117: 108.68 | G117: 80.73 | H117: 56.93 | I117: 11.39
A118: Lao People's Democratic Republic | B118: USD | C118: 56.93 | D118: 54.86 | E118: 52.79 | F118: 45.54 | G118: 33.12 | H118: 23.81 | I118: 5.18
A119: Latvia | B119: EUR | C119: 137.66 | D119: 131.45 | E119: 126.27 | F119: 108.68 | G119: 80.73 | H119: 56.93 | I119: 11.39
A120: Lebanon | B120: GBP | C120: 120.06 | D120: 114.89 | E120: 109.71 | F120: 95.22 | G120: 70.38 | H120: 49.68 | I120: 10.35
A121: Lesotho | B121: USD | C121: 81.77 | D121: 78.66 | E121: 74.52 | F121: 64.17 | G121: 47.61 | H121: 34.16 | I121: 7.25
A122: Liberia | B122: USD | C122: 81.77 | D122: 78.66 | E122: 74.52 | F122: 64.17 | G122: 47.61 | H122: 34.16 | I122: 7.25
A123: Libyan Arab Jamahiriya | B123: GBP | C123: 120.06 | D123: 114.89 | E123: 109.71 | F123: 95.22 | G123: 70.38 | H123: 49.68 | I123: 10.35
A124: Liechtenstein | B124: EUR | C124: 137.66 | D124: 131.45 | E124: 126.27 | F124: 108.68 | G124: 80.73 | H124: 56.93 | I124: 11.39
A125: Lithuania | B125: EUR | C125: 137.66 | D125: 131.45 | E125: 126.27 | F125: 108.68 | G125: 80.73 | H125: 56.93 | I125: 11.39
A126: Luxembourg | B126: EUR | C126: 137.66 | D126: 131.45 | E126: 126.27 | F126: 108.68 | G126: 80.73 | H126: 56.93 | I126: 11.39
A127: Macao | B127: HKD | C127: 758.66 | D127: 726.57 | E127: 695.52 | F127: 600.3 | G127: 442.98 | H127: 315.68 | I127: 63.14
A128: Madagascar | B128: USD | C128: 81.77 | D128: 78.66 | E128: 74.52 | F128: 64.17 | G128: 47.61 | H128: 34.16 | I128: 7.25
A129: Malawi | B129: USD | C129: 81.77 | D129: 78.66 | E129: 74.52 | F129: 64.17 | G129: 47.61 | H129: 34.16 | I129: 7.25
A130: Malaysia | B130: USD | C130: 65.21 | D130: 62.1 | E130: 60.03 | F130: 51.75 | G130: 38.3 | H130: 26.91 | I130: 5.18
A131: Maldives | B131: USD | C131: 81.77 | D131: 78.66 | E131: 74.52 | F131: 64.17 | G131: 47.61 | H131: 34.16 | I131: 7.25
A132: Mali | B132: USD | C132: 81.77 | D132: 78.66 | E132: 74.52 | F132: 64.17 | G132: 47.61 | H132: 34.16 | I132: 7.25
A133: Malta | B133: EUR | C133: 137.66 | D133: 131.45 | E133: 126.27 | F133: 108.68 | G133: 80.73 | H133: 56.93 | I133: 11.39
A134: Marshall Islands | B134: USD | C134: 73.49 | D134: 70.38 | E134: 67.28 | F134: 57.96 | G134: 42.44 | H134: 31.05 | I134: 6.21
A135: Martinique | B135: EUR | C135: 75.56 | D135: 72.45 | E135: 69.35 | F135: 60.03 | G135: 44.51 | H135: 31.05 | I135: 6.21
A136: Mauritania | B136: USD | C136: 81.77 | D136: 78.66 | E136: 74.52 | F136: 64.17 | G136: 47.61 | H136: 34.16 | I136: 7.25
A137: Mauritius | B137: USD | C137: 81.77 | D137: 78.66 | E137: 74.52 | F137: 64.17 | G137: 47.61 | H137: 34.16 | I137: 7.25
A138: Mayotte | B138: USD | C138: 81.77 | D138: 78.66 | E138: 74.52 | F138: 64.17 | G138: 47.61 | H138: 34.16 | I138: 7.25
A139: Mexico | B139: USD | C139: 117.99 | D139: 112.82 | E139: 108.68 | F139: 93.15 | G139: 69.35 | H139: 49.68 | I139: 10.35
A140: Monaco | B140: EUR | C140: 137.66 | D140: 131.45 | E140: 126.27 | F140: 108.68 | G140: 80.73 | H140: 56.93 | I140: 11.39
A141: Mongolia | B141: USD | C141: 56.93 | D141: 54.86 | E141: 52.79 | F141: 45.54 | G141: 33.12 | H141: 23.81 | I141: 5.18
A142: Montenegro | B142: EUR | C142: 137.66 | D142: 131.45 | E142: 126.27 | F142: 108.68 | G142: 80.73 | H142: 56.93 | I142: 11.39
A143: Montserrat | B143: USD | C143: 90.05 | D143: 85.91 | E143: 81.77 | F143: 71.42 | G143: 52.79 | H143: 37.26 | I143: 7.25
A144: Morocco | B144: EUR | C144: 89.01 | D144: 85.91 | E144: 81.77 | F144: 71.42 | G144: 51.75 | H144: 37.26 | I144: 7.25
A145: Mozambique | B145: USD | C145: 81.77 | D145: 78.66 | E145: 74.52 | F145: 64.17 | G145: 47.61 | H145: 34.16 | I145: 7.25
A146: Myanmar (Burma) | B146: USD | C146: 56.93 | D146: 54.86 | E146: 52.79 | F146: 45.54 | G146: 33.12 | H146: 23.81 | I146: 5.18
A147: Namibia | B147: USD | C147: 81.77 | D147: 78.66 | E147: 74.52 | F147: 64.17 | G147: 47.61 | H147: 34.16 | I147: 7.25
A148: Nauru | B148: USD | C148: 56.93 | D148: 54.86 | E148: 52.79 | F148: 45.54 | G148: 33.12 | H148: 23.81 | I148: 5.18
A149: Nepal | B149: USD | C149: 40.37 | D149: 39.33 | E149: 37.26 | F149: 32.09 | G149: 23.81 | H149: 16.56 | I149: 3.11
A150: Netherlands | B150: EUR | C150: 137.66 | D150: 131.45 | E150: 126.27 | F150: 108.68 | G150: 80.73 | H150: 56.93 | I150: 11.39
A151: Netherlands Antilles | B151: USD | C151: 90.05 | D151: 85.91 | E151: 81.77 | F151: 71.42 | G151: 52.79 | H151: 37.26 | I151: 7.25
A152: New Caledonia | B152: USD | C152: 56.93 | D152: 54.86 | E152: 52.79 | F152: 45.54 | G152: 33.12 | H152: 23.81 | I152: 5.18
A153: New Zealand | B153: NZD | C153: 143.87 | D153: 138.69 | E153: 132.48 | F153: 113.85 | G153: 83.84 | H153: 60.03 | I153: 12.42
A154: Nicaragua | B154: USD | C154: 61.07 | D154: 59 | E154: 55.89 | F154: 48.65 | G154: 35.19 | H154: 25.88 | I154: 5.18
A155: Niger | B155: USD | C155: 81.77 | D155: 78.66 | E155: 74.52 | F155: 64.17 | G155: 47.61 | H155: 34.16 | I155: 7.25
A156: Nigeria | B156: USD | C156: 81.77 | D156: 78.66 | E156: 74.52 | F156: 64.17 | G156: 47.61 | H156: 34.16 | I156: 7.25
A157: Niue | B157: USD | C157: 56.93 | D157: 54.86 | E157: 52.79 | F157: 45.54 | G157: 33.12 | H157: 23.81 | I157: 5.18
A158: North Macedonia | B158: EUR | C158: 137.66 | D158: 131.45 | E158: 126.27 | F158: 108.68 | G158: 80.73 | H158: 56.93 | I158: 11.39
A159: Norway | B159: EUR | C159: 137.66 | D159: 131.45 | E159: 126.27 | F159: 108.68 | G159: 80.73 | H159: 56.93 | I159: 11.39
A160: Oman | B160: GBP | C160: 120.06 | D160: 114.89 | E160: 109.71 | F160: 95.22 | G160: 70.38 | H160: 49.68 | I160: 10.35
A161: Pakistan | B161: GBP | C161: 120.06 | D161: 114.89 | E161: 109.71 | F161: 95.22 | G161: 70.38 | H161: 49.68 | I161: 10.35
A162: Palau | B162: USD | C162: 73.49 | D162: 70.38 | E162: 67.28 | F162: 57.96 | G162: 42.44 | H162: 31.05 | I162: 6.21
A163: Palestinian Territory | B163: GBP | C163: 120.06 | D163: 114.89 | E163: 109.71 | F163: 95.22 | G163: 70.38 | H163: 49.68 | I163: 10.35
A164: Panama | B164: USD | C164: 61.07 | D164: 59 | E164: 55.89 | F164: 48.65 | G164: 35.19 | H164: 25.88 | I164: 5.18
A165: Papua New Guinea | B165: AUD | C165: 78.66 | D165: 75.56 | E165: 72.45 | F165: 62.1 | G165: 45.54 | H165: 33.12 | I165: 6.21
A166: Paraguay | B166: USD | C166: 61.07 | D166: 59 | E166: 55.89 | F166: 48.65 | G166: 35.19 | H166: 25.88 | I166: 5.18
A167: Peru | B167: USD | C167: 61.07 | D167: 59 | E167: 55.89 | F167: 48.65 | G167: 35.19 | H167: 25.88 | I167: 5.18
A168: Philippines | B168: USD | C168: 48.65 | D168: 46.58 | E168: 44.51 | F168: 38.3 | G168: 28.98 | H168: 20.7 | I168: 4.14
A169: Pitcairn Island | B169: USD | C169: 56.93 | D169: 54.86 | E169: 52.79 | F169: 45.54 | G169: 33.12 | H169: 23.81 | I169: 5.18
A170: Poland | B170: EUR | C170: 137.66 | D170: 131.45 | E170: 126.27 | F170: 108.68 | G170: 80.73 | H170: 56.93 | I170: 11.39
A171: Portugal | B171: EUR | C171: 137.66 | D171: 131.45 | E171: 126.27 | F171: 108.68 | G171: 80.73 | H171: 56.93 | I171: 11.39
A172: Puerto Rico | B172: USD | C172: 61.07 | D172: 59 | E172: 55.89 | F172: 48.65 | G172: 35.19 | H172: 25.88 | I172: 5.18
A173: Qatar | B173: GBP | C173: 120.06 | D173: 114.89 | E173: 109.71 | F173: 95.22 | G173: 70.38 | H173: 49.68 | I173: 10.35
A174: Republic of Korea | B174: USD | C174: 98.33 | D174: 94.19 | E174: 90.05 | F174: 77.63 | G174: 56.93 | H174: 40.37 | I174: 8.28
A175: Republic of Kosovo | B175: EUR | C175: 137.66 | D175: 131.45 | E175: 126.27 | F175: 108.68 | G175: 80.73 | H175: 56.93 | I175: 11.39
A176: Republic of Moldova | B176: EUR | C176: 137.66 | D176: 131.45 | E176: 126.27 | F176: 108.68 | G176: 80.73 | H176: 56.93 | I176: 11.39
A177: Romania | B177: EUR | C177: 137.66 | D177: 131.45 | E177: 126.27 | F177: 108.68 | G177: 80.73 | H177: 56.93 | I177: 11.39
A178: Russian Federation | B178: EUR | C178: 137.66 | D178: 131.45 | E178: 126.27 | F178: 108.68 | G178: 80.73 | H178: 56.93 | I178: 11.39
A179: Rwanda | B179: USD | C179: 81.77 | D179: 78.66 | E179: 74.52 | F179: 64.17 | G179: 47.61 | H179: 34.16 | I179: 7.25
A180: Saint Helena, Ascension and Tristan Da Cunha | B180: USD | C180: 81.77 | D180: 78.66 | E180: 74.52 | F180: 64.17 | G180: 47.61 | H180: 34.16 | I180: 7.25
A181: Saint Kitts And Nevis | B181: USD | C181: 65.21 | D181: 62.1 | E181: 60.03 | F181: 51.75 | G181: 38.3 | H181: 26.91 | I181: 5.18
A182: Saint Lucia | B182: USD | C182: 90.05 | D182: 85.91 | E182: 81.77 | F182: 71.42 | G182: 52.79 | H182: 37.26 | I182: 7.25
A183: Saint Pierre And Miquelon | B183: USD | C183: 65.21 | D183: 62.1 | E183: 60.03 | F183: 51.75 | G183: 38.3 | H183: 26.91 | I183: 5.18
A184: Saint Vincent And The Grenadines | B184: USD | C184: 65.21 | D184: 62.1 | E184: 60.03 | F184: 51.75 | G184: 38.3 | H184: 26.91 | I184: 5.18
A185: Samoa | B185: USD | C185: 56.93 | D185: 54.86 | E185: 52.79 | F185: 45.54 | G185: 33.12 | H185: 23.81 | I185: 5.18
A186: San Marino | B186: EUR | C186: 137.66 | D186: 131.45 | E186: 126.27 | F186: 108.68 | G186: 80.73 | H186: 56.93 | I186: 11.39
A187: Sao Tome and Principe | B187: USD | C187: 81.77 | D187: 78.66 | E187: 74.52 | F187: 64.17 | G187: 47.61 | H187: 34.16 | I187: 7.25
A188: Saudi Arabia | B188: GBP | C188: 120.06 | D188: 114.89 | E188: 109.71 | F188: 95.22 | G188: 70.38 | H188: 49.68 | I188: 10.35
A189: Senegal | B189: USD | C189: 81.77 | D189: 78.66 | E189: 74.52 | F189: 64.17 | G189: 47.61 | H189: 34.16 | I189: 7.25
A190: Serbia | B190: EUR | C190: 137.66 | D190: 131.45 | E190: 126.27 | F190: 108.68 | G190: 80.73 | H190: 56.93 | I190: 11.39
A191: Seychelles | B191: USD | C191: 81.77 | D191: 78.66 | E191: 74.52 | F191: 64.17 | G191: 47.61 | H191: 34.16 | I191: 7.25
A192: Sierra Leone | B192: USD | C192: 81.77 | D192: 78.66 | E192: 74.52 | F192: 64.17 | G192: 47.61 | H192: 34.16 | I192: 7.25
A193: Singapore | B193: USD | C193: 98.33 | D193: 94.19 | E193: 90.05 | F193: 77.63 | G193: 56.93 | H193: 40.37 | I193: 8.28
A194: Slovakia | B194: EUR | C194: 137.66 | D194: 131.45 | E194: 126.27 | F194: 108.68 | G194: 80.73 | H194: 56.93 | I194: 11.39
A195: Slovenia | B195: EUR | C195: 137.66 | D195: 131.45 | E195: 126.27 | F195: 108.68 | G195: 80.73 | H195: 56.93 | I195: 11.39
A196: Solomon Islands | B196: USD | C196: 56.93 | D196: 54.86 | E196: 52.79 | F196: 45.54 | G196: 33.12 | H196: 23.81 | I196: 5.18
A197: Somalia | B197: USD | C197: 81.77 | D197: 78.66 | E197: 74.52 | F197: 64.17 | G197: 47.61 | H197: 34.16 | I197: 7.25
A198: South Africa | B198: ZAR | C198: 1284.44 | D198: 1230.62 | E198: 1177.83 | F198: 1016.37 | G198: 749.34 | H198: 535.1 | I198: 106.61
A199: South Georgia And The South Sandwich Islands | B199: USD | C199: 65.21 | D199: 62.1 | E199: 60.03 | F199: 51.75 | G199: 38.3 | H199: 26.91 | I199: 5.18
A200: Spain | B200: EUR | C200: 137.66 | D200: 131.45 | E200: 126.27 | F200: 108.68 | G200: 80.73 | H200: 56.93 | I200: 11.39
... 38 more rows

Sheet Calculator
C3: Fee scale calculator
C4: Sponsorship
C5: Please select your country of operation from the drop down below based on where your head office is located. Please note that firms in the UK (this includes the Channel Islands) will be charged VAT at the rate of 20%. The figures below show how much you would pay for sponsoring members. The cost is reduced as you ascend through each bracket. So if you were in the UK and sponsored 6 members it would be calculated as below. 1 x 124 GBP + 4 x 119 GBP + 1 x 114 = 714 GBP
C6: Country (Drop Down) | E6: Currency | G6: One | I6: 2-5 | K6: 6-10 | M6: 11-50 | O6: 51-150 | Q6: 151-250 | S6: 251+
C7: United Kingdom | E7: =IFERROR(VLOOKUP(C7,Sheet1!1:1048576,2,FALSE), "N/A") -> GBP | G7: =IFERROR(VLOOKUP(C7,Sheet1!1:1048576,3,FALSE), "0") -> 124.2 | I7: =IFERROR(VLOOKUP(C7,Sheet1!1:1048576,4,FALSE), "0") -> 119.03 | K7: =IFERROR(VLOOKUP(C7,Sheet1!1:1048576,5,FALSE), "0") -> 113.85 | M7: =IFERROR(VLOOKUP(C7,Sheet1!1:1048576,6,FALSE), "0") -> 98.33 | O7: =IFERROR(VLOOKUP(C7,Sheet1!1:1048576,7,FALSE), "0") -> 72.45 | Q7: =IFERROR(VLOOKUP(C7,Sheet1!1:1048576,8,FALSE), "0") -> 51.75 | S7: =IFERROR(VLOOKUP(C7,Sheet1!1:1048576,9,FALSE), "0") -> 10.35
K9: Count | M9: Cost
C10: Select the number of members you wish to sponsor to calculate the cost in the above currency from the "count" drop to the right. You must select a country to return a figure. | K10: 6 | M10: =IFERROR(VLOOKUP(K10,Sheet4!1:1048576,2,FALSE), "0") -> 714.17
C13: Unsponsored Members
C15: For the cost of applying for or renewing your licence for Valuer Registration, select your country of operation from the drop down below. Please note members in the UK (this includes the Channel Islands) will be charged VAT at a rate of 20%
C17: Country (Drop Down) | E17: Currency | G17: Fee | I17: Renew
C18: Afghanistan | E18: =IFERROR(VLOOKUP(C18,UNSP!A1:F238,2,FALSE), "N/A") -> GBP | G18: =IFERROR(VLOOKUP(C18,UNSP!A1:F238,4,FALSE), "0") -> 139.73 | I18: =IFERROR(VLOOKUP(C18,UNSP!A1:F238,6,FALSE), "0") -> 139.73

Sheet UNSP (hidden)
A1: Country | B1: Currency | C1: Regulated Area | D1: ApplicationFee | E1: RegistrationFee | F1: RenewalFee
A2: Afghanistan | B2: GBP | C2: Europe, Middle East & Africa (EMEA) | D2: 139.73 | E2: 0 | F2: 139.73
A3: Albania | B3: EUR | C3: Europe, Middle East & Africa (EMEA) | D3: 160.43 | E3: 0 | F3: 155
A4: Algeria | B4: GBP | C4: Europe, Middle East & Africa (EMEA) | D4: 139.73 | E4: 0 | F4: 135
A5: American Samoa | B5: USD | C5: Asia Pacific | D5: 66.24 | E5: 0 | F5: 64
A6: Andorra | B6: EUR | C6: Europe, Middle East & Africa (EMEA) | D6: 160.43 | E6: 0 | F6: 155
A7: Angola | B7: USD | C7: Europe, Middle East & Africa (EMEA) | D7: 87.98 | E7: 0 | F7: 92
A8: Anguilla | B8: USD | C8: Americas | D8: 137.66 | E8: 0 | F8: 100
A9: Antarctica | B9: USD | C9: Asia Pacific | D9: 66.24 | E9: 0 | F9: 64
A10: Antigua And Barbuda | B10: USD | C10: Americas | D10: 76.59 | E10: 0 | F10: 74
A11: Argentina | B11: USD | C11: Americas | D11: 72.45 | E11: 0 | F11: 69
A12: Armenia | B12: EUR | C12: Europe, Middle East & Africa (EMEA) | D12: 160.43 | E12: 0 | F12: 155
A13: Aruba | B13: USD | C13: Americas | D13: 144.9 | E13: 0 | F13: 138
A14: Australia | B14: AUD | C14: Asia Pacific | D14: 182.16 | E14: 0 | F14: 176
A15: Austria | B15: EUR | C15: Europe, Middle East & Africa (EMEA) | D15: 160.43 | E15: 0 | F15: 155
A16: Azerbaijan | B16: EUR | C16: Europe, Middle East & Africa (EMEA) | D16: 160.43 | E16: 0 | F16: 155
A17: Bahamas | B17: USD | C17: Americas | D17: 142.83 | E17: 0 | F17: 138
A18: Bahrain | B18: GBP | C18: Europe, Middle East & Africa (EMEA) | D18: 139.73 | E18: 0 | F18: 135
A19: Bangladesh | B19: USD | C19: Asia Pacific | D19: 76.59 | E19: 0 | F19: 74
A20: Barbados | B20: USD | C20: Americas | D20: 110.75 | E20: 0 | F20: 100
A21: Belarus | B21: EUR | C21: Europe, Middle East & Africa (EMEA) | D21: 160.43 | E21: 0 | F21: 155
A22: Belgium | B22: EUR | C22: Europe, Middle East & Africa (EMEA) | D22: 160.43 | E22: 0 | F22: 155
A23: Belize | B23: USD | C23: Americas | D23: 71.42 | E23: 0 | F23: 69
A24: Benin | B24: USD | C24: Europe, Middle East & Africa (EMEA) | D24: 95.22 | E24: 0 | F24: 92
A25: Bermuda | B25: USD | C25: Americas | D25: 142.83 | E25: 0 | F25: 138
A26: Bhutan | B26: USD | C26: Asia Pacific | D26: 66.24 | E26: 0 | F26: 64
A27: Bolivia | B27: USD | C27: Americas | D27: 71.42 | E27: 0 | F27: 69
A28: Bosnia And Herzegovina | B28: EUR | C28: Europe, Middle East & Africa (EMEA) | D28: 160.43 | E28: 0 | F28: 155
A29: Botswana | B29: USD | C29: Europe, Middle East & Africa (EMEA) | D29: 95.22 | E29: 0 | F29: 92
A30: Brazil | B30: BRL | C30: Americas | D30: 762.8 | E30: 0 | F30: 737
A31: British Indian Ocean Territory | B31: USD | C31: Asia Pacific | D31: 66.24 | E31: 0 | F31: 64
A32: British Virgin Islands | B32: USD | C32: Americas | D32: 142.83 | E32: 0 | F32: 138
A33: Brunei Darussalam | B33: USD | C33: Asia Pacific | D33: 113.85 | E33: 0 | F33: 110
A34: Bulgaria | B34: EUR | C34: Europe, Middle East & Africa (EMEA) | D34: 160.43 | E34: 0 | F34: 155
A35: Burkina Faso | B35: USD | C35: Europe, Middle East & Africa (EMEA) | D35: 95.22 | E35: 0 | F35: 92
A36: Burundi | B36: USD | C36: Europe, Middle East & Africa (EMEA) | D36: 95.22 | E36: 0 | F36: 92
A37: Cambodia | B37: USD | C37: Asia Pacific | D37: 66.24 | E37: 0 | F37: 64
A38: Cameroon | B38: USD | C38: Europe, Middle East & Africa (EMEA) | D38: 95.22 | E38: 0 | F38: 92
A39: Canada | B39: CAD | C39: Americas | D39: 248.4 | E39: 0 | F39: 240
A40: Cape Verde | B40: USD | C40: Europe, Middle East & Africa (EMEA) | D40: 95.22 | E40: 0 | F40: 92
A41: Cayman Islands | B41: USD | C41: Americas | D41: 142.83 | E41: 0 | F41: 138
A42: Central African Republic | B42: USD | C42: Europe, Middle East & Africa (EMEA) | D42: 95.22 | E42: 0 | F42: 92
A43: Chad | B43: USD | C43: Europe, Middle East & Africa (EMEA) | D43: 95.22 | E43: 0 | F43: 92
A44: Chile | B44: USD | C44: Americas | D44: 71.42 | E44: 0 | F44: 69
A45: China | B45: GBP | C45: Asia Pacific | D45: 72.45 | E45: 0 | F45: 70
A46: Christmas Island | B46: USD | C46: Asia Pacific | D46: 66.24 | E46: 0 | F46: 64
A47: Cocos (Keeling) Islands | B47: USD | C47: Asia Pacific | D47: 66.24 | E47: 0 | F47: 64
A48: Colombia | B48: USD | C48: Americas | D48: 71.42 | E48: 0 | F48: 69
A49: Comoros | B49: USD | C49: Europe, Middle East & Africa (EMEA) | D49: 95.22 | E49: 0 | F49: 92
A50: Congo, Republic of | B50: USD | C50: Europe, Middle East & Africa (EMEA) | D50: 95.22 | E50: 0 | F50: 92
A51: Cook Islands | B51: USD | C51: Asia Pacific | D51: 85.91 | E51: 0 | F51: 83
A52: Costa Rica | B52: USD | C52: Americas | D52: 71.42 | E52: 0 | F52: 69
A53: Cote D'ivoire | B53: USD | C53: Europe, Middle East & Africa (EMEA) | D53: 95.22 | E53: 0 | F53: 92
A54: Croatia | B54: EUR | C54: Europe, Middle East & Africa (EMEA) | D54: 160.43 | E54: 0 | F54: 155
A55: Cuba | B55: USD | C55: Americas | D55: 76.59 | E55: 0 | F55: 74
A56: Cyprus | B56: EUR | C56: Europe, Middle East & Africa (EMEA) | D56: 160.43 | E56: 0 | F56: 155
A57: Czech Republic | B57: EUR | C57: Europe, Middle East & Africa (EMEA) | D57: 160.43 | E57: 0 | F57: 155
A58: Democratic People's Republic of Korea | B58: USD | C58: Asia Pacific | D58: 66.24 | E58: 0 | F58: 64
A59: Denmark | B59: EUR | C59: Europe, Middle East & Africa (EMEA) | D59: 160.43 | E59: 0 | F59: 155
A60: Djibouti | B60: USD | C60: Europe, Middle East & Africa (EMEA) | D60: 95.22 | E60: 0 | F60: 92
A61: Dominica | B61: USD | C61: Americas | D61: 76.59 | E61: 0 | F61: 74
A62: Dominican Republic | B62: USD | C62: Americas | D62: 71.42 | E62: 0 | F62: 69
A63: Ecuador | B63: USD | C63: Americas | D63: 71.42 | E63: 0 | F63: 69
A64: Egypt | B64: GBP | C64: Europe, Middle East & Africa (EMEA) | D64: 139.73 | E64: 0 | F64: 135
A65: El Salvador | B65: USD | C65: Americas | D65: 71.42 | E65: 0 | F65: 69
A66: Equatorial Guinea | B66: USD | C66: Europe, Middle East & Africa (EMEA) | D66: 95.22 | E66: 0 | F66: 92
A67: Eritrea | B67: USD | C67: Europe, Middle East & Africa (EMEA) | D67: 95.22 | E67: 0 | F67: 92
A68: Estonia | B68: EUR | C68: Europe, Middle East & Africa (EMEA) | D68: 160.43 | E68: 0 | F68: 155
A69: Ethiopia | B69: USD | C69: Europe, Middle East & Africa (EMEA) | D69: 95.22 | E69: 0 | F69: 92
A70: Falkland Islands | B70: USD | C70: Americas | D70: 104.54 | E70: 0 | F70: 100
A71: Faroe Islands | B71: EUR | C71: Europe, Middle East & Africa (EMEA) | D71: 160.43 | E71: 0 | F71: 155
A72: Federated States of Micronesia | B72: USD | C72: Asia Pacific | D72: 85.91 | E72: 0 | F72: 83
A73: Fiji | B73: AUD | C73: Asia Pacific | D73: 92.12 | E73: 0 | F73: 89
A74: Finland | B74: EUR | C74: Europe, Middle East & Africa (EMEA) | D74: 160.43 | E74: 0 | F74: 155
A75: France | B75: EUR | C75: Europe, Middle East & Africa (EMEA) | D75: 160.43 | E75: 0 | F75: 155
A76: French Guiana | B76: USD | C76: Americas | D76: 71.42 | E76: 0 | F76: 69
A77: French Polynesia | B77: USD | C77: Asia Pacific | D77: 123.17 | E77: 0 | F77: 119
A78: French Southern Territories | B78: USD | C78: Asia Pacific | D78: 66.24 | E78: 0 | F78: 64
A79: Gabon | B79: USD | C79: Europe, Middle East & Africa (EMEA) | D79: 95.22 | E79: 0 | F79: 92
A80: Gambia | B80: USD | C80: Europe, Middle East & Africa (EMEA) | D80: 95.22 | E80: 0 | F80: 92
A81: Georgia | B81: EUR | C81: Europe, Middle East & Africa (EMEA) | D81: 160.43 | E81: 0 | F81: 155
A82: Germany | B82: EUR | C82: Europe, Middle East & Africa (EMEA) | D82: 160.43 | E82: 0 | F82: 155
A83: Ghana | B83: USD | C83: Europe, Middle East & Africa (EMEA) | D83: 95.22 | E83: 0 | F83: 92
A84: Gibraltar | B84: EUR | C84: Europe, Middle East & Africa (EMEA) | D84: 160.43 | E84: 0 | F84: 155
A85: Greece | B85: EUR | C85: Europe, Middle East & Africa (EMEA) | D85: 160.43 | E85: 0 | F85: 155
A86: Greenland | B86: USD | C86: Americas | D86: 142.83 | E86: 0 | F86: 138
A87: Grenada | B87: USD | C87: Americas | D87: 76.59 | E87: 0 | F87: 74
A88: Guadeloupe | B88: USD | C88: Americas | D88: 104.54 | E88: 0 | F88: 100
A89: Guam | B89: USD | C89: Asia Pacific | D89: 123.17 | E89: 0 | F89: 119
A90: Guatemala | B90: USD | C90: Americas | D90: 71.42 | E90: 0 | F90: 69
A91: Guinea | B91: USD | C91: Europe, Middle East & Africa (EMEA) | D91: 95.22 | E91: 0 | F91: 92
A92: Guinea-bissau | B92: USD | C92: Europe, Middle East & Africa (EMEA) | D92: 95.22 | E92: 0 | F92: 92
A93: Guyana | B93: USD | C93: Americas | D93: 71.42 | E93: 0 | F93: 69
A94: Haiti | B94: USD | C94: Americas | D94: 76.59 | E94: 0 | F94: 74
A95: Holy See (Vatican City State) | B95: EUR | C95: Europe, Middle East & Africa (EMEA) | D95: 160.43 | E95: 0 | F95: 155
A96: Honduras | B96: USD | C96: Americas | D96: 71.42 | E96: 0 | F96: 69
A97: Hong Kong | B97: HKD | C97: Asia Pacific | D97: 884.93 | E97: 0 | F97: 855
A98: Hungary | B98: EUR | C98: Europe, Middle East & Africa (EMEA) | D98: 160.43 | E98: 0 | F98: 155
A99: Iceland | B99: EUR | C99: Europe, Middle East & Africa (EMEA) | D99: 160.43 | E99: 0 | F99: 155
A100: India | B100: INR | C100: Asia Pacific | D100: 14119.47 | E100: 0 | F100: 13642
A101: Indonesia | B101: USD | C101: Asia Pacific | D101: 56.93 | E101: 0 | F101: 55
A102: Iraq | B102: GBP | C102: Europe, Middle East & Africa (EMEA) | D102: 139.73 | E102: 0 | F102: 135
A103: Ireland | B103: EUR | C103: Europe, Middle East & Africa (EMEA) | D103: 160.43 | E103: 0 | F103: 155
A104: Islamic Republic Of Iran | B104: GBP | C104: Europe, Middle East & Africa (EMEA) | D104: 139.73 | E104: 0 | F104: 135
A105: Israel | B105: EUR | C105: Europe, Middle East & Africa (EMEA) | D105: 160.43 | E105: 0 | F105: 155
A106: Italy | B106: EUR | C106: Europe, Middle East & Africa (EMEA) | D106: 160.43 | E106: 0 | F106: 155
A107: Jamaica | B107: USD | C107: Americas | D107: 76.59 | E107: 0 | F107: 74
A108: Japan | B108: USD | C108: Asia Pacific | D108: 110.75 | E108: 0 | F108: 107
A109: Jordan | B109: GBP | C109: Europe, Middle East & Africa (EMEA) | D109: 139.73 | E109: 0 | F109: 135
A110: Kazakhstan | B110: EUR | C110: Europe, Middle East & Africa (EMEA) | D110: 160.43 | E110: 0 | F110: 155
A111: Kenya | B111: USD | C111: Europe, Middle East & Africa (EMEA) | D111: 95.22 | E111: 0 | F111: 92
A112: Kiribati | B112: USD | C112: Asia Pacific | D112: 66.24 | E112: 0 | F112: 64
A113: Kuwait | B113: GBP | C113: Europe, Middle East & Africa (EMEA) | D113: 139.73 | E113: 0 | F113: 135
A114: Kyrgyzstan | B114: EUR | C114: Europe, Middle East & Africa (EMEA) | D114: 160.43 | E114: 0 | F114: 155
A115: Lao People's Democratic Republic | B115: USD | C115: Asia Pacific | D115: 66.24 | E115: 0 | F115: 64
A116: Latvia | B116: EUR | C116: Europe, Middle East & Africa (EMEA) | D116: 160.43 | E116: 0 | F116: 155
A117: Lebanon | B117: GBP | C117: Europe, Middle East & Africa (EMEA) | D117: 139.73 | E117: 0 | F117: 135
A118: Lesotho | B118: USD | C118: Europe, Middle East & Africa (EMEA) | D118: 95.22 | E118: 0 | F118: 92
A119: Liberia | B119: USD | C119: Europe, Middle East & Africa (EMEA) | D119: 95.22 | E119: 0 | F119: 92
A120: Libyan Arab Jamahiriya | B120: GBP | C120: Europe, Middle East & Africa (EMEA) | D120: 139.73 | E120: 0 | F120: 135
A121: Liechtenstein | B121: EUR | C121: Europe, Middle East & Africa (EMEA) | D121: 160.43 | E121: 0 | F121: 155
A122: Lithuania | B122: EUR | C122: Europe, Middle East & Africa (EMEA) | D122: 160.43 | E122: 0 | F122: 155
A123: Luxembourg | B123: EUR | C123: Europe, Middle East & Africa (EMEA) | D123: 160.43 | E123: 0 | F123: 155
A124: Macao | B124: HKD | C124: Asia Pacific | D124: 884.93 | E124: 0 | F124: 855
A125: Madagascar | B125: USD | C125: Europe, Middle East & Africa (EMEA) | D125: 95.22 | E125: 0 | F125: 92
A126: Malawi | B126: USD | C126: Europe, Middle East & Africa (EMEA) | D126: 95.22 | E126: 0 | F126: 92
A127: Malaysia | B127: USD | C127: Asia Pacific | D127: 76.59 | E127: 0 | F127: 74
A128: Maldives | B128: USD | C128: Europe, Middle East & Africa (EMEA) | D128: 95.22 | E128: 0 | F128: 92
A129: Mali | B129: USD | C129: Europe, Middle East & Africa (EMEA) | D129: 95.22 | E129: 0 | F129: 92
A130: Malta | B130: EUR | C130: Europe, Middle East & Africa (EMEA) | D130: 160.43 | E130: 0 | F130: 155
A131: Marshall Islands | B131: USD | C131: Asia Pacific | D131: 85.91 | E131: 0 | F131: 83
A132: Martinique | B132: EUR | C132: Americas | D132: 87.98 | E132: 0 | F132: 85
A133: Mauritania | B133: USD | C133: Europe, Middle East & Africa (EMEA) | D133: 95.22 | E133: 0 | F133: 92
A134: Mauritius | B134: USD | C134: Europe, Middle East & Africa (EMEA) | D134: 95.22 | E134: 0 | F134: 92
A135: Mayotte | B135: USD | C135: Europe, Middle East & Africa (EMEA) | D135: 95.22 | E135: 0 | F135: 92
A136: Mexico | B136: USD | C136: Americas | D136: 137.66 | E136: 0 | F136: 133
A137: Monaco | B137: EUR | C137: Europe, Middle East & Africa (EMEA) | D137: 160.43 | E137: 0 | F137: 155
A138: Mongolia | B138: USD | C138: Asia Pacific | D138: 66.24 | E138: 0 | F138: 64
A139: Montenegro | B139: EUR | C139: Europe, Middle East & Africa (EMEA) | D139: 160.43 | E139: 0 | F139: 155
A140: Montserrat | B140: USD | C140: Americas | D140: 104.54 | E140: 0 | F140: 100
A141: Morocco | B141: EUR | C141: Europe, Middle East & Africa (EMEA) | D141: 104.54 | E141: 0 | F141: 101
A142: Mozambique | B142: USD | C142: Europe, Middle East & Africa (EMEA) | D142: 95.22 | E142: 0 | F142: 92
A143: Myanmar (Burma) | B143: USD | C143: Asia Pacific | D143: 66.24 | E143: 0 | F143: 64
A144: Namibia | B144: USD | C144: Europe, Middle East & Africa (EMEA) | D144: 95.22 | E144: 0 | F144: 92
A145: Nauru | B145: USD | C145: Asia Pacific | D145: 66.24 | E145: 0 | F145: 64
A146: Nepal | B146: USD | C146: Asia Pacific | D146: 47.61 | E146: 0 | F146: 46
A147: Netherlands | B147: EUR | C147: Europe, Middle East & Africa (EMEA) | D147: 160.43 | E147: 0 | F147: 155
A148: Netherlands Antilles | B148: USD | C148: Americas | D148: 104.54 | E148: 0 | F148: 100
A149: New Caledonia | B149: USD | C149: Asia Pacific | D149: 66.24 | E149: 0 | F149: 64
A150: New Zealand | B150: NZD | C150: Asia Pacific | D150: 168.71 | E150: 0 | F150: 163
A151: Nicaragua | B151: USD | C151: Americas | D151: 71.42 | E151: 0 | F151: 69
A152: Niger | B152: USD | C152: Europe, Middle East & Africa (EMEA) | D152: 95.22 | E152: 0 | F152: 92
A153: Nigeria | B153: USD | C153: Europe, Middle East & Africa (EMEA) | D153: 95.22 | E153: 0 | F153: 92
A154: Niue | B154: USD | C154: Asia Pacific | D154: 66.24 | E154: 0 | F154: 64
A155: Norfolk Island | B155: USD | C155: Asia Pacific | D155: 66.24 | E155: 0 | F155: 64
A156: Norway | B156: EUR | C156: Europe, Middle East & Africa (EMEA) | D156: 160.43 | E156: 0 | F156: 155
A157: Oman | B157: GBP | C157: Europe, Middle East & Africa (EMEA) | D157: 139.73 | E157: 0 | F157: 135
A158: Pakistan | B158: GBP | C158: Europe, Middle East & Africa (EMEA) | D158: 139.73 | E158: 0 | F158: 135
A159: Palau | B159: USD | C159: Asia Pacific | D159: 85.91 | E159: 0 | F159: 83
A160: Palestinian Territory | B160: GBP | C160: Europe, Middle East & Africa (EMEA) | D160: 139.73 | E160: 0 | F160: 135
A161: Panama | B161: USD | C161: Americas | D161: 71.42 | E161: 0 | F161: 69
A162: Papua New Guinea | B162: AUD | C162: Asia Pacific | D162: 92.12 | E162: 0 | F162: 89
A163: Paraguay | B163: USD | C163: Americas | D163: 71.42 | E163: 0 | F163: 69
A164: Peru | B164: USD | C164: Americas | D164: 71.42 | E164: 0 | F164: 69
A165: Philippines | B165: USD | C165: Asia Pacific | D165: 56.93 | E165: 0 | F165: 55
A166: Pitcairn | B166: USD | C166: Asia Pacific | D166: 66.24 | E166: 0 | F166: 64
A167: Poland | B167: EUR | C167: Europe, Middle East & Africa (EMEA) | D167: 160.43 | E167: 0 | F167: 155
A168: Portugal | B168: EUR | C168: Europe, Middle East & Africa (EMEA) | D168: 160.43 | E168: 0 | F168: 155
A169: Puerto Rico | B169: USD | C169: Americas | D169: 71.42 | E169: 0 | F169: 69
A170: Qatar | B170: GBP | C170: Europe, Middle East & Africa (EMEA) | D170: 139.73 | E170: 0 | F170: 135
A171: Republic of Korea | B171: USD | C171: Asia Pacific | D171: 113.85 | E171: 0 | F171: 110
A172: Republic of Kosovo | B172: EUR | C172: Europe, Middle East & Africa (EMEA) | D172: 160.43 | E172: 0 | F172: 155
A173: Republic of Moldova | B173: EUR | C173: Europe, Middle East & Africa (EMEA) | D173: 160.43 | E173: 0 | F173: 155
A174: Romania | B174: EUR | C174: Europe, Middle East & Africa (EMEA) | D174: 160.43 | E174: 0 | F174: 155
A175: Russian Federation | B175: EUR | C175: Europe, Middle East & Africa (EMEA) | D175: 160.43 | E175: 0 | F175: 155
A176: Rwanda | B176: USD | C176: Europe, Middle East & Africa (EMEA) | D176: 95.22 | E176: 0 | F176: 92
A177: Saint Helena | B177: USD | C177: Europe, Middle East & Africa (EMEA) | D177: 95.22 | E177: 0 | F177: 92
A178: Saint Kitts And Nevis | B178: USD | C178: Americas | D178: 76.59 | E178: 0 | F178: 74
A179: Saint Lucia | B179: USD | C179: Americas | D179: 104.54 | E179: 0 | F179: 100
A180: Saint Pierre And Miquelon | B180: USD | C180: Americas | D180: 76.59 | E180: 0 | F180: 74
A181: Saint Vincent And The Grenadines | B181: USD | C181: Americas | D181: 76.59 | E181: 0 | F181: 74
A182: Samoa | B182: USD | C182: Asia Pacific | D182: 66.24 | E182: 0 | F182: 64
A183: San Marino | B183: EUR | C183: Europe, Middle East & Africa (EMEA) | D183: 160.43 | E183: 0 | F183: 155
A184: Sao Tome And Principe | B184: USD | C184: Europe, Middle East & Africa (EMEA) | D184: 95.22 | E184: 0 | F184: 92
A185: Saudi Arabia | B185: GBP | C185: Europe, Middle East & Africa (EMEA) | D185: 139.73 | E185: 0 | F185: 135
A186: Senegal | B186: USD | C186: Europe, Middle East & Africa (EMEA) | D186: 95.22 | E186: 0 | F186: 92
A187: Serbia | B187: EUR | C187: Europe, Middle East & Africa (EMEA) | D187: 160.43 | E187: 0 | F187: 155
A188: Seychelles | B188: USD | C188: Europe, Middle East & Africa (EMEA) | D188: 95.22 | E188: 0 | F188: 92
A189: Sierra Leone | B189: USD | C189: Europe, Middle East & Africa (EMEA) | D189: 95.22 | E189: 0 | F189: 92
A190: Singapore | B190: USD | C190: Asia Pacific | D190: 113.85 | E190: 0 | F190: 110
A191: Slovakia | B191: EUR | C191: Europe, Middle East & Africa (EMEA) | D191: 160.43 | E191: 0 | F191: 155
A192: Slovenia | B192: EUR | C192: Europe, Middle East & Africa (EMEA) | D192: 160.43 | E192: 0 | F192: 155
A193: Solomon Islands | B193: USD | C193: Asia Pacific | D193: 66.24 | E193: 0 | F193: 64
A194: Somalia | B194: USD | C194: Europe, Middle East & Africa (EMEA) | D194: 95.22 | E194: 0 | F194: 92
A195: South Africa | B195: ZAR | C195: Europe, Middle East & Africa (EMEA) | D195: 2290.46 | E195: 0 | F195: 2213
A196: South Georgia And The South Sandwich Islands | B196: USD | C196: Americas | D196: 76.59 | E196: 0 | F196: 74
A197: Spain | B197: EUR | C197: Europe, Middle East & Africa (EMEA) | D197: 160.43 | E197: 0 | F197: 155
A198: Sri Lanka | B198: USD | C198: Asia Pacific | D198: 47.61 | E198: 0 | F198: 46
A199: Sudan | B199: USD | C199: Europe, Middle East & Africa (EMEA) | D199: 95.22 | E199: 0 | F199: 92
A200: Suriname | B200: USD | C200: Americas | D200: 71.42 | E200: 0 | F200: 69
... 38 more rows

Sheet Sheet4 (hidden)
A4: 1 | B4: =Calculator!G7 -> 124.2
A5: 2 | B5: =Calculator!G7+Calculator!I7 -> 243.23
A6: 3 | B6: =Calculator!G7+Calculator!I7+Calculator!I7 -> 362.26
A7: 4 | B7: =Calculator!G7+Calculator!I7+Calculator!I7+Calculator!I7 -> 481.29
A8: 5 | B8: =Calculator!G7+Calculator!I7+Calculator!I7+Calculator!I7+Calculator!I7 -> 600.32
A9: 6 | B9: =Calculator!G7+Calculator!I7+Calculator!I7+Calculator!I7+Calculator!I7+Calculator!K7 -> 714.17
A10: 7 | B10: =Calculator!G7+Calculator!I7+Calculator!I7+Calculator!I7+Calculator!I7+Calculator!K7+Calculator!K7 -> 828.02
A11: 8 | B11: =Calculator!G7+Calculator!I7+Calculator!I7+Calculator!I7+Calculator!I7+Calculator!K7+Calculator!K7+Calculator!K7 -> 941.87
A12: 9 | B12: =Calculator!G7+Calculator!I7+Calculator!I7+Calculator!I7+Calculator!I7+Calculator!K7+Calculator!K7+Calculator!K7+Calculator!K7 -> 1055.72
A13: 10 | B13: =Calculator!G7+Calculator!I7+Calculator!I7+Calculator!I7+Calculator!I7+Calculator!K7+Calculator!K7+Calculator!K7+Calculator!K7+Calculator!K7 -> 1169.57
A14: 11 | B14: =$B$13+C14 -> 1267.9 | C14: =1*Calculator!M7 -> 98.33
A15: 12 | B15: =$B$13+C15 -> 1366.23 | C15: =2*Calculator!M7 -> 196.66
A16: 13 | B16: 1464.56 | C16: =3*Calculator!M7 -> 294.99
A17: 14 | B17: 1562.89 | C17: =4*Calculator!M7 -> 393.32
A18: 15 | B18: 1661.22 | C18: =5*Calculator!M7 -> 491.65
A19: 16 | B19: 1759.55 | C19: =6*Calculator!M7 -> 589.98
A20: 17 | B20: 1857.88 | C20: =7*Calculator!M7 -> 688.31
A21: 18 | B21: 1956.21 | C21: =8*Calculator!M7 -> 786.64
A22: 19 | B22: 2054.54 | C22: =9*Calculator!M7 -> 884.97
A23: 20 | B23: 2152.87 | C23: =10*Calculator!M7 -> 983.3
A24: 21 | B24: 2251.2 | C24: =11*Calculator!M7 -> 1081.63
A25: 22 | B25: 2349.53 | C25: =12*Calculator!M7 -> 1179.96
A26: 23 | B26: 2447.86 | C26: =13*Calculator!M7 -> 1278.29
A27: 24 | B27: 2546.19 | C27: =14*Calculator!M7 -> 1376.62
A28: 25 | B28: 2644.52 | C28: =15*Calculator!M7 -> 1474.95
A29: 26 | B29: 2742.85 | C29: =16*Calculator!M7 -> 1573.28
A30: 27 | B30: 2841.18 | C30: =17*Calculator!M7 -> 1671.61
A31: 28 | B31: 2939.51 | C31: =18*Calculator!M7 -> 1769.94
A32: 29 | B32: 3037.84 | C32: =19*Calculator!M7 -> 1868.27
A33: 30 | B33: 3136.17 | C33: =20*Calculator!M7 -> 1966.6
A34: 31 | B34: 3234.5 | C34: =21*Calculator!M7 -> 2064.93
A35: 32 | B35: 3332.83 | C35: =22*Calculator!M7 -> 2163.26
A36: 33 | B36: 3431.16 | C36: =23*Calculator!M7 -> 2261.59
A37: 34 | B37: 3529.49 | C37: =24*Calculator!M7 -> 2359.92
A38: 35 | B38: 3627.82 | C38: =25*Calculator!M7 -> 2458.25
A39: 36 | B39: 3726.15 | C39: =26*Calculator!M7 -> 2556.58
A40: 37 | B40: 3824.48 | C40: =27*Calculator!M7 -> 2654.91
A41: 38 | B41: 3922.81 | C41: =28*Calculator!M7 -> 2753.24
A42: 39 | B42: 4021.14 | C42: =29*Calculator!M7 -> 2851.57
A43: 40 | B43: 4119.47 | C43: =30*Calculator!M7 -> 2949.9
A44: 41 | B44: 4217.8 | C44: =31*Calculator!M7 -> 3048.23
A45: 42 | B45: 4316.13 | C45: =32*Calculator!M7 -> 3146.56
A46: 43 | B46: 4414.46 | C46: =33*Calculator!M7 -> 3244.89
A47: 44 | B47: 4512.79 | C47: =34*Calculator!M7 -> 3343.22
A48: 45 | B48: 4611.12 | C48: =35*Calculator!M7 -> 3441.55
A49: 46 | B49: 4709.45 | C49: =36*Calculator!M7 -> 3539.88
A50: 47 | B50: 4807.78 | C50: =37*Calculator!M7 -> 3638.21
A51: 48 | B51: 4906.11 | C51: =38*Calculator!M7 -> 3736.54
A52: 49 | B52: 5004.44 | C52: =39*Calculator!M7 -> 3834.87
A53: 50 | B53: 5102.77 | C53: =40*Calculator!M7 -> 3933.2
A54: 51 | B54: =$B$53+C54 -> 5175.22 | C54: =Calculator!O7 -> 72.45
A55: 52 | B55: 5247.67 | C55: =2*Calculator!O7 -> 144.9
A56: 53 | B56: 5320.12 | C56: =3*Calculator!O7 -> 217.35
A57: 54 | B57: 5392.57 | C57: =4*Calculator!O7 -> 289.8
A58: 55 | B58: 5465.02 | C58: =5*Calculator!O7 -> 362.25
A59: 56 | B59: 5537.47 | C59: =6*Calculator!O7 -> 434.7
A60: 57 | B60: 5609.92 | C60: =7*Calculator!O7 -> 507.15
A61: 58 | B61: =$B$53+C61 -> 5682.37 | C61: =8*Calculator!O7 -> 579.6
A62: 59 | B62: =$B$53+C62 -> 5754.82 | C62: =Calculator!O7*Sheet4!D62 -> 652.05 | D62: 9
A63: 60 | B63: =$B$53+C63 -> 5827.27 | C63: =Calculator!O7*Sheet4!D63 -> 724.5 | D63: 10
A64: 61 | B64: 5899.72 | C64: =Calculator!$O$7*Sheet4!D64 -> 796.95 | D64: 11
A65: 62 | B65: 5972.17 | C65: =Calculator!$O$7*Sheet4!D65 -> 869.4 | D65: 12
A66: 63 | B66: 6044.62 | C66: =Calculator!$O$7*Sheet4!D66 -> 941.85 | D66: 13
A67: 64 | B67: 6117.07 | C67: =Calculator!$O$7*Sheet4!D67 -> 1014.3 | D67: 14
A68: 65 | B68: 6189.52 | C68: =Calculator!$O$7*Sheet4!D68 -> 1086.75 | D68: 15
A69: 66 | B69: 6261.97 | C69: =Calculator!$O$7*Sheet4!D69 -> 1159.2 | D69: 16
A70: 67 | B70: 6334.42 | C70: =Calculator!$O$7*Sheet4!D70 -> 1231.65 | D70: 17
A71: 68 | B71: 6406.87 | C71: =Calculator!$O$7*Sheet4!D71 -> 1304.1 | D71: 18
A72: 69 | B72: 6479.32 | C72: =Calculator!$O$7*Sheet4!D72 -> 1376.55 | D72: 19
A73: 70 | B73: 6551.77 | C73: =Calculator!$O$7*Sheet4!D73 -> 1449 | D73: 20
A74: 71 | B74: 6624.22 | C74: =Calculator!$O$7*Sheet4!D74 -> 1521.45 | D74: 21
A75: 72 | B75: 6696.67 | C75: =Calculator!$O$7*Sheet4!D75 -> 1593.9 | D75: 22
A76: 73 | B76: 6769.12 | C76: =Calculator!$O$7*Sheet4!D76 -> 1666.35 | D76: 23
A77: 74 | B77: 6841.57 | C77: =Calculator!$O$7*Sheet4!D77 -> 1738.8 | D77: 24
A78: 75 | B78: 6914.02 | C78: =Calculator!$O$7*Sheet4!D78 -> 1811.25 | D78: 25
A79: 76 | B79: 6986.47 | C79: =Calculator!$O$7*Sheet4!D79 -> 1883.7 | D79: 26
A80: 77 | B80: 7058.92 | C80: =Calculator!$O$7*Sheet4!D80 -> 1956.15 | D80: 27
A81: 78 | B81: 7131.37 | C81: =Calculator!$O$7*Sheet4!D81 -> 2028.6 | D81: 28
A82: 79 | B82: 7203.82 | C82: =Calculator!$O$7*Sheet4!D82 -> 2101.05 | D82: 29
A83: 80 | B83: 7276.27 | C83: =Calculator!$O$7*Sheet4!D83 -> 2173.5 | D83: 30
A84: 81 | B84: 7348.72 | C84: =Calculator!$O$7*Sheet4!D84 -> 2245.95 | D84: 31
A85: 82 | B85: 7421.17 | C85: =Calculator!$O$7*Sheet4!D85 -> 2318.4 | D85: 32
A86: 83 | B86: 7493.62 | C86: =Calculator!$O$7*Sheet4!D86 -> 2390.85 | D86: 33
A87: 84 | B87: 7566.07 | C87: =Calculator!$O$7*Sheet4!D87 -> 2463.3 | D87: 34
A88: 85 | B88: 7638.52 | C88: =Calculator!$O$7*Sheet4!D88 -> 2535.75 | D88: 35
A89: 86 | B89: 7710.97 | C89: =Calculator!$O$7*Sheet4!D89 -> 2608.2 | D89: 36
A90: 87 | B90: 7783.42 | C90: =Calculator!$O$7*Sheet4!D90 -> 2680.65 | D90: 37
A91: 88 | B91: 7855.87 | C91: =Calculator!$O$7*Sheet4!D91 -> 2753.1 | D91: 38
A92: 89 | B92: 7928.32 | C92: =Calculator!$O$7*Sheet4!D92 -> 2825.55 | D92: 39
A93: 90 | B93: 8000.77 | C93: =Calculator!$O$7*Sheet4!D93 -> 2898 | D93: 40
A94: 91 | B94: 8073.22 | C94: =Calculator!$O$7*Sheet4!D94 -> 2970.45 | D94: 41
A95: 92 | B95: 8145.67 | C95: =Calculator!$O$7*Sheet4!D95 -> 3042.9 | D95: 42
A96: 93 | B96: 8218.12 | C96: =Calculator!$O$7*Sheet4!D96 -> 3115.35 | D96: 43
A97: 94 | B97: 8290.57 | C97: =Calculator!$O$7*Sheet4!D97 -> 3187.8 | D97: 44
A98: 95 | B98: 8363.02 | C98: =Calculator!$O$7*Sheet4!D98 -> 3260.25 | D98: 45
A99: 96 | B99: 8435.47 | C99: =Calculator!$O$7*Sheet4!D99 -> 3332.7 | D99: 46
A100: 97 | B100: 8507.92 | C100: =Calculator!$O$7*Sheet4!D100 -> 3405.15 | D100: 47
A101: 98 | B101: 8580.37 | C101: =Calculator!$O$7*Sheet4!D101 -> 3477.6 | D101: 48
A102: 99 | B102: 8652.82 | C102: =Calculator!$O$7*Sheet4!D102 -> 3550.05 | D102: 49
A103: 100 | B103: 8725.27 | C103: =Calculator!$O$7*Sheet4!D103 -> 3622.5 | D103: 50
A104: 101 | B104: 8797.72 | C104: =Calculator!$O$7*Sheet4!D104 -> 3694.95 | D104: 51
A105: 102 | B105: 8870.17 | C105: =Calculator!$O$7*Sheet4!D105 -> 3767.4 | D105: 52
A106: 103 | B106: 8942.62 | C106: =Calculator!$O$7*Sheet4!D106 -> 3839.85 | D106: 53
A107: 104 | B107: 9015.07 | C107: =Calculator!$O$7*Sheet4!D107 -> 3912.3 | D107: 54
A108: 105 | B108: 9087.52 | C108: =Calculator!$O$7*Sheet4!D108 -> 3984.75 | D108: 55
A109: 106 | B109: 9159.97 | C109: =Calculator!$O$7*Sheet4!D109 -> 4057.2 | D109: 56
A110: 107 | B110: 9232.42 | C110: =Calculator!$O$7*Sheet4!D110 -> 4129.65 | D110: 57
A111: 108 | B111: 9304.87 | C111: =Calculator!$O$7*Sheet4!D111 -> 4202.1 | D111: 58
A112: 109 | B112: 9377.32 | C112: =Calculator!$O$7*Sheet4!D112 -> 4274.55 | D112: 59
A113: 110 | B113: 9449.77 | C113: =Calculator!$O$7*Sheet4!D113 -> 4347 | D113: 60
A114: 111 | B114: 9522.22 | C114: =Calculator!$O$7*Sheet4!D114 -> 4419.45 | D114: 61
A115: 112 | B115: 9594.67 | C115: =Calculator!$O$7*Sheet4!D115 -> 4491.9 | D115: 62
A116: 113 | B116: 9667.12 | C116: =Calculator!$O$7*Sheet4!D116 -> 4564.35 | D116: 63
A117: 114 | B117: 9739.57 | C117: =Calculator!$O$7*Sheet4!D117 -> 4636.8 | D117: 64
A118: 115 | B118: 9812.02 | C118: =Calculator!$O$7*Sheet4!D118 -> 4709.25 | D118: 65
A119: 116 | B119: 9884.47 | C119: =Calculator!$O$7*Sheet4!D119 -> 4781.7 | D119: 66
A120: 117 | B120: 9956.92 | C120: =Calculator!$O$7*Sheet4!D120 -> 4854.15 | D120: 67
A121: 118 | B121: 10029.37 | C121: =Calculator!$O$7*Sheet4!D121 -> 4926.6 | D121: 68
A122: 119 | B122: 10101.82 | C122: =Calculator!$O$7*Sheet4!D122 -> 4999.05 | D122: 69
A123: 120 | B123: 10174.27 | C123: =Calculator!$O$7*Sheet4!D123 -> 5071.5 | D123: 70
A124: 121 | B124: 10246.72 | C124: =Calculator!$O$7*Sheet4!D124 -> 5143.95 | D124: 71
A125: 122 | B125: 10319.17 | C125: =Calculator!$O$7*Sheet4!D125 -> 5216.4 | D125: 72
A126: 123 | B126: 10391.62 | C126: =Calculator!$O$7*Sheet4!D126 -> 5288.85 | D126: 73
A127: 124 | B127: =$B$53+C127 -> 10464.07 | C127: =Calculator!$O$7*Sheet4!D127 -> 5361.3 | D127: 74
A128: 125 | B128: 10536.52 | C128: =Calculator!$O$7*Sheet4!D128 -> 5433.75 | D128: 75
A129: 126 | B129: 10608.97 | C129: =Calculator!$O$7*Sheet4!D129 -> 5506.2 | D129: 76
A130: 127 | B130: 10681.42 | C130: =Calculator!$O$7*Sheet4!D130 -> 5578.65 | D130: 77
A131: 128 | B131: 10753.87 | C131: =Calculator!$O$7*Sheet4!D131 -> 5651.1 | D131: 78
A132: 129 | B132: 10826.32 | C132: =Calculator!$O$7*Sheet4!D132 -> 5723.55 | D132: 79
A133: 130 | B133: 10898.77 | C133: =Calculator!$O$7*Sheet4!D133 -> 5796 | D133: 80
A134: 131 | B134: 10971.22 | C134: =Calculator!$O$7*Sheet4!D134 -> 5868.45 | D134: 81
A135: 132 | B135: 11043.67 | C135: =Calculator!$O$7*Sheet4!D135 -> 5940.9 | D135: 82
A136: 133 | B136: 11116.12 | C136: =Calculator!$O$7*Sheet4!D136 -> 6013.35 | D136: 83
A137: 134 | B137: 11188.57 | C137: =Calculator!$O$7*Sheet4!D137 -> 6085.8 | D137: 84
A138: 135 | B138: 11261.02 | C138: =Calculator!$O$7*Sheet4!D138 -> 6158.25 | D138: 85
A139: 136 | B139: 11333.47 | C139: =Calculator!$O$7*Sheet4!D139 -> 6230.7 | D139: 86
A140: 137 | B140: 11405.92 | C140: =Calculator!$O$7*Sheet4!D140 -> 6303.15 | D140: 87
A141: 138 | B141: 11478.37 | C141: =Calculator!$O$7*Sheet4!D141 -> 6375.6 | D141: 88
A142: 139 | B142: 11550.82 | C142: =Calculator!$O$7*Sheet4!D142 -> 6448.05 | D142: 89
A143: 140 | B143: 11623.27 | C143: =Calculator!$O$7*Sheet4!D143 -> 6520.5 | D143: 90
A144: 141 | B144: 11695.72 | C144: =Calculator!$O$7*Sheet4!D144 -> 6592.95 | D144: 91
A145: 142 | B145: 11768.17 | C145: =Calculator!$O$7*Sheet4!D145 -> 6665.4 | D145: 92
A146: 143 | B146: 11840.62 | C146: =Calculator!$O$7*Sheet4!D146 -> 6737.85 | D146: 93
A147: 144 | B147: 11913.07 | C147: =Calculator!$O$7*Sheet4!D147 -> 6810.3 | D147: 94
A148: 145 | B148: 11985.52 | C148: =Calculator!$O$7*Sheet4!D148 -> 6882.75 | D148: 95
A149: 146 | B149: 12057.97 | C149: =Calculator!$O$7*Sheet4!D149 -> 6955.2 | D149: 96
A150: 147 | B150: 12130.42 | C150: =Calculator!$O$7*Sheet4!D150 -> 7027.65 | D150: 97
A151: 148 | B151: 12202.87 | C151: =Calculator!$O$7*Sheet4!D151 -> 7100.1 | D151: 98
A152: 149 | B152: 12275.32 | C152: =Calculator!$O$7*Sheet4!D152 -> 7172.55 | D152: 99
A153: 150 | B153: 12347.77 | C153: =Calculator!$O$7*Sheet4!D153 -> 7245 | D153: 100
A154: 151 | B154: =$B$153+C154 -> 12399.52 | C154: =D154*Calculator!$Q$7 -> 51.75 | D154: 1
A155: 152 | B155: =$B$153+C155 -> 12451.27 | C155: =D155*Calculator!$Q$7 -> 103.5 | D155: 2
A156: 153 | B156: 12503.02 | C156: =D156*Calculator!$Q$7 -> 155.25 | D156: 3
A157: 154 | B157: 12554.77 | C157: =D157*Calculator!$Q$7 -> 207 | D157: 4
A158: 155 | B158: 12606.52 | C158: =D158*Calculator!$Q$7 -> 258.75 | D158: 5
A159: 156 | B159: 12658.27 | C159: =D159*Calculator!$Q$7 -> 310.5 | D159: 6
A160: 157 | B160: 12710.02 | C160: =D160*Calculator!$Q$7 -> 362.25 | D160: 7
A161: 158 | B161: 12761.77 | C161: =D161*Calculator!$Q$7 -> 414 | D161: 8
A162: 159 | B162: 12813.52 | C162: =D162*Calculator!$Q$7 -> 465.75 | D162: 9
A163: 160 | B163: 12865.27 | C163: =D163*Calculator!$Q$7 -> 517.5 | D163: 10
A164: 161 | B164: 12917.02 | C164: =D164*Calculator!$Q$7 -> 569.25 | D164: 11
A165: 162 | B165: 12968.77 | C165: =D165*Calculator!$Q$7 -> 621 | D165: 12
A166: 163 | B166: 13020.52 | C166: =D166*Calculator!$Q$7 -> 672.75 | D166: 13
A167: 164 | B167: 13072.27 | C167: =D167*Calculator!$Q$7 -> 724.5 | D167: 14
A168: 165 | B168: 13124.02 | C168: =D168*Calculator!$Q$7 -> 776.25 | D168: 15
A169: 166 | B169: 13175.77 | C169: =D169*Calculator!$Q$7 -> 828 | D169: 16
A170: 167 | B170: 13227.52 | C170: =D170*Calculator!$Q$7 -> 879.75 | D170: 17
A171: 168 | B171: 13279.27 | C171: =D171*Calculator!$Q$7 -> 931.5 | D171: 18
A172: 169 | B172: 13331.02 | C172: =D172*Calculator!$Q$7 -> 983.25 | D172: 19
A173: 170 | B173: 13382.77 | C173: =D173*Calculator!$Q$7 -> 1035 | D173: 20
A174: 171 | B174: 13434.52 | C174: =D174*Calculator!$Q$7 -> 1086.75 | D174: 21
A175: 172 | B175: 13486.27 | C175: =D175*Calculator!$Q$7 -> 1138.5 | D175: 22
A176: 173 | B176: 13538.02 | C176: =D176*Calculator!$Q$7 -> 1190.25 | D176: 23
A177: 174 | B177: 13589.77 | C177: =D177*Calculator!$Q$7 -> 1242 | D177: 24
A178: 175 | B178: 13641.52 | C178: =D178*Calculator!$Q$7 -> 1293.75 | D178: 25
A179: 176 | B179: 13693.27 | C179: =D179*Calculator!$Q$7 -> 1345.5 | D179: 26
A180: 177 | B180: 13745.02 | C180: =D180*Calculator!$Q$7 -> 1397.25 | D180: 27
A181: 178 | B181: 13796.77 | C181: =D181*Calculator!$Q$7 -> 1449 | D181: 28
A182: 179 | B182: 13848.52 | C182: =D182*Calculator!$Q$7 -> 1500.75 | D182: 29
A183: 180 | B183: 13900.27 | C183: =D183*Calculator!$Q$7 -> 1552.5 | D183: 30
A184: 181 | B184: 13952.02 | C184: =D184*Calculator!$Q$7 -> 1604.25 | D184: 31
A185: 182 | B185: 14003.77 | C185: =D185*Calculator!$Q$7 -> 1656 | D185: 32
A186: 183 | B186: 14055.52 | C186: =D186*Calculator!$Q$7 -> 1707.75 | D186: 33
A187: 184 | B187: 14107.27 | C187: =D187*Calculator!$Q$7 -> 1759.5 | D187: 34
A188: 185 | B188: 14159.02 | C188: =D188*Calculator!$Q$7 -> 1811.25 | D188: 35
A189: 186 | B189: 14210.77 | C189: =D189*Calculator!$Q$7 -> 1863 | D189: 36
A190: 187 | B190: 14262.52 | C190: =D190*Calculator!$Q$7 -> 1914.75 | D190: 37
A191: 188 | B191: 14314.27 | C191: =D191*Calculator!$Q$7 -> 1966.5 | D191: 38
A192: 189 | B192: 14366.02 | C192: =D192*Calculator!$Q$7 -> 2018.25 | D192: 39
A193: 190 | B193: 14417.77 | C193: =D193*Calculator!$Q$7 -> 2070 | D193: 40
A194: 191 | B194: 14469.52 | C194: =D194*Calculator!$Q$7 -> 2121.75 | D194: 41
A195: 192 | B195: 14521.27 | C195: =D195*Calculator!$Q$7 -> 2173.5 | D195: 42
A196: 193 | B196: 14573.02 | C196: =D196*Calculator!$Q$7 -> 2225.25 | D196: 43
A197: 194 | B197: 14624.77 | C197: =D197*Calculator!$Q$7 -> 2277 | D197: 44
A198: 195 | B198: 14676.52 | C198: =D198*Calculator!$Q$7 -> 2328.75 | D198: 45
A199: 196 | B199: 14728.27 | C199: =D199*Calculator!$Q$7 -> 2380.5 | D199: 46
A200: 197 | B200: 14780.02 | C200: =D200*Calculator!$Q$7 -> 2432.25 | D200: 47
A201: 198 | B201: 14831.77 | C201: =D201*Calculator!$Q$7 -> 2484 | D201: 48
A202: 199 | B202: 14883.52 | C202: =D202*Calculator!$Q$7 -> 2535.75 | D202: 49
A203: 200 | B203: 14935.27 | C203: =D203*Calculator!$Q$7 -> 2587.5 | D203: 50
... 800 more rows

Sheet Sheet3 (hidden)
